bitfinex/quotes_SOLUSD_20220105
["timestamp","ask_amount","ask_price","bid_price","bid_amount"]
[1641411168315,17.6116309,161.77,161.76,43.81315976]
[1641411169314,17.6116309,161.77,161.76,73.81315976]
[1641411170139,17.6116309,161.77,161.76,43.81315976]
[1641411170342,23.67603084,161.77,161.76,43.81315976]
[1641411171342,23.67603084,161.77,161.74,9.3112]
[1641411171542,49.27519789,161.77,161.74,9.3112]
[1641411171942,23.67603084,161.77,161.74,9.3112]
[1641411173145,5.0,161.76,161.74,9.3112]
[1641411175647,28.69483542,161.76,161.74,9.3112]
[1641411176452,28.69483542,161.76,161.72,92.9]
[1641411176747,28.69483542,161.76,161.71,9.75623671]
[1641411176952,28.69483542,161.76,161.7,46.8858]
[1641411177146,34.98383542,161.76,161.67,9.75623671]
[1641411177348,34.98383542,161.76,161.68,2.88501766]
[1641411178149,34.98383542,161.76,161.68,12.64125437]
[1641411178348,28.69483542,161.76,161.68,12.64125437]
[1641411181451,28.69483542,161.76,161.68,9.75623671]
[1641411182650,28.69483542,161.76,161.66,81.95067896]
[1641411182850,34.44083542,161.76,161.66,2.70567896]
[1641411184254,28.69483542,161.76,161.66,2.70567896]
[1641411186359,2.70567896,161.66,161.63,92.9]
[1641411186557,2.70567896,161.66,161.6,9.2952]
[1641411186558,17.91127448,161.63,161.6,9.2952]
[1641411186757,17.91127448,161.63,161.59,525.92183748]
[1641411187858,17.91127448,161.63,161.57,92.9]
[1641411189656,17.91127448,161.63,161.57,88.92874579]
[1641411190159,17.91127448,161.63,161.53,9.75623671]
[1641411190357,24.75627448,161.63,161.53,9.75623671]
[1641411190661,24.75627448,161.63,161.54,29.68522322]
[1641411191157,24.75627448,161.63,161.54,39.44145993]
[1641411191158,17.91127448,161.63,161.54,39.44145993]
[1641411191459,17.91127448,161.63,161.54,49.08476858]
[1641411191657,7.448e-05,161.63,161.54,58.36296858]
[1641411191859,7.448e-05,161.63,161.55,8.88]
[1641411192057,7.448e-05,161.63,161.56,47.4034]
[1641411192257,7.448e-05,161.63,161.56,57.3588685]
[1641411192457,7.448e-05,161.63,161.57,9.9554685]
[1641411193267,7.448e-05,161.63,161.58,72.1415]
[1641411194266,7.448e-05,161.63,161.57,9.9554685]
[1641411194472,7.448e-05,161.63,161.56,47.4034]
[1641411194473,7.448e-05,161.63,161.56,34.7472376]
[1641411195266,7.448e-05,161.63,161.56,23.5914]
[1641411196897,7.448e-05,161.63,161.55,24.2738]
[1641411198499,0.06,161.62,161.55,24.2738]
[1641411199900,8.94,161.62,161.55,24.2738]
[1641411203300,8.94,161.62,161.55,19.2738]
[1641411203501,8.94,161.62,161.56,2.54289715]
[1641411206207,29.756441,161.62,161.56,2.54289715]
[1641411206407,29.756441,161.62,161.51,0.30945871]
[1641411206607,34.625441,161.62,161.51,0.30945871]
[1641411207005,35.385441,161.62,161.51,0.30945871]
[1641411207206,34.625441,161.62,161.52,2.60264115]
[1641411207706,29.756441,161.62,161.52,2.60264115]
[1641411207905,8.94,161.62,161.52,2.60264115]
[1641411208308,2.08790014,161.51,161.5,3.03844205]
[1641411208708,0.00010014,161.51,161.5,97.0]
[1641411213211,0.00010014,161.51,161.5,92.0]
[1641411214116,0.00010014,161.51,161.49,181.5401]
[1641411218315,6.06439994,161.5,161.49,176.5401]
[1641411218614,0.00010014,161.51,161.49,11.98384822]
[1641411218814,0.00010014,161.51,161.49,9.1511]
[1641411219817,0.00010014,161.51,161.49,18.38756244]
[1641411220015,0.00010014,161.51,161.5,123.3898]
[1641411220415,0.00010014,161.51,161.5,132.62626244]
[1641411221216,0.00010014,161.51,161.5,40.08455604]
[1641411221419,0.00010014,161.51,161.5,30.8480936]
[1641411221621,0.00010014,161.51,161.5,24.3898]
[1641411221818,0.00010014,161.51,161.47,78.9943]
[1641411222020,0.00010014,161.51,161.47,88.1536]
[1641411223218,0.00010014,161.51,161.47,83.1536]
[1641411223817,0.00010014,161.51,161.47,73.9943]
[1641411224018,8.88,161.56,161.41,74.4625]
[1641411224217,8.88,161.56,161.39,729.9729474]
[1641411224218,0.06,161.55,161.39,778.4318474]
[1641411224520,0.06,161.55,161.4,36.78411867]
[1641411224716,14.951,161.56,161.4,36.78411867]
[1641411224717,28.22759499,161.53,161.4,36.78411867]
[1641411224918,37.04759499,161.53,161.4,36.78411867]
[1641411225118,37.04759499,161.53,161.4,9.51282727]
[1641411225319,0.06,161.52,161.4,0.13522727]
[1641411225521,8.88,161.51,161.4,0.13522727]
[1641411225719,0.06,161.5,161.4,0.13522727]
[1641411225921,8.88,161.49,161.4,0.13522727]
[1641411226120,22.75754506,161.48,161.4,0.13522727]
[1641411226324,0.06,161.46,161.4,0.13522727]
[1641411228322,2.00709774,161.4,161.38,2.66497226]
[1641411228526,9.774e-05,161.4,161.37,4.942914]
[1641411231452,9.774e-05,161.4,161.37,46.56859776]
[1641411231651,9.774e-05,161.4,161.38,24.2678]
[1641411232252,9.774e-05,161.4,161.39,122.0453]
[1641411232456,8.88,161.53,161.39,131.3329]
[1641411232653,8.88,161.53,161.4,131.38791394]
[1641411233252,8.88,161.53,161.4,126.38791394]
[1641411235853,31.77256205,161.53,161.4,126.38791394]
[1641411236455,0.06,161.52,161.4,126.38791394]
[1641411236655,8.88,161.51,161.4,126.38791394]
[1641411238258,8.88,161.51,161.4,121.38791394]
[1641411242264,0.06,161.5,161.4,121.38791394]
[1641411242465,8.88,161.49,161.4,121.38791394]
[1641411243062,8.88,161.49,161.4,131.05765156]
[1641411243263,31.77256205,161.53,161.4,126.05765156]
[1641411243464,31.77256205,161.53,161.4,134.78855844]
[1641411243666,8.88,161.53,161.4,134.78855844]
[1641411244667,28.50619483,161.52,161.4,134.78855844]
[1641411244868,28.50619483,161.52,161.4,126.05765156]
[1641411245073,28.50619483,161.52,161.4,116.38791394]
[1641411245468,8.88,161.51,161.4,116.38791394]
[1641411246469,8.88,161.51,161.4,126.05765156]
[1641411248271,8.88,161.51,161.4,121.05765156]
[1641411248671,8.88,161.51,161.4,130.34485156]
[1641411249075,8.88,161.51,161.4,121.05765156]
[1641411249275,8.88,161.56,161.4,121.05765156]
[1641411249476,8.88,161.56,161.41,24.7701]
[1641411249883,8.88,161.56,161.44,2.92050699]
[1641411250081,8.88,161.56,161.44,124.89767029]
[1641411251482,8.88,161.61,161.44,133.77767029]
[1641411251679,8.88,161.61,161.45,22.6947]
[1641411252082,30.39149005,161.6,161.45,22.6947]
[1641411252282,8.88,161.59,161.46,24.8518]
[1641411252481,8.88,161.59,161.47,2.82793155]
[1641411254183,8.94,161.59,161.47,2.82793155]
[1641411254591,9.44,161.59,161.47,2.82793155]
[1641411255791,8.94,161.59,161.47,2.82793155]
[1641411262919,0.06,161.59,161.47,18.64493155]
[1641411263125,0.06,161.59,161.48,25.61444816]
[1641411263321,0.06,161.59,161.48,48.51004816]
[1641411266049,0.06,161.59,161.48,22.8956]
[1641411266244,8.88,161.61,161.48,22.8956]
[1641411266445,0.06,161.6,161.47,2.82793155]
[1641411267670,8.88,161.59,161.47,2.82793155]
[1641411267866,22.97009596,161.58,161.47,2.82793155]
[1641411268869,8.88,161.57,161.47,2.82793155]
[1641411269069,0.06,161.56,161.47,2.82793155]
[1641411269469,2.17206845,161.47,161.44,12.13308238]
[1641411271974,2.17206845,161.47,161.44,9.3512]
[1641411272979,8.88,161.59,161.46,2.33964843]
[1641411273179,8.88,161.59,161.46,25.27604843]
[1641411273779,24.53619556,161.58,161.46,104.80754843]
[1641411274379,24.53619556,161.58,161.47,2.54776516]
[1641411274580,24.59619556,161.58,161.47,2.54776516]
[1641411275381,0.06,161.58,161.47,2.54776516]
[1641411275886,0.06,161.58,161.48,23.9518]
[1641411276481,8.88,161.61,161.48,23.9518]
[1641411276482,25.14401793,161.6,161.48,23.9518]
[1641411277883,8.88,161.59,161.48,23.9518]
[1641411278083,0.06,161.58,161.48,23.9518]
[1641411279483,0.06,161.58,161.48,18.9518]
[1641411283797,8.88,161.57,161.48,18.9518]
[1641411283996,0.06,161.56,161.48,18.9518]
[1641411284198,8.94,161.56,161.48,18.9518]
[1641411284398,25.78112212,161.55,161.48,13.9518]
[1641411284599,0.06,161.54,161.48,13.9518]
[1641411285503,0.06,161.54,161.4,24.4303]
[1641411285705,0.06,161.54,161.43,2.80999127]
[1641411286929,0.06,161.54,161.43,77.96689127]
[1641411289135,0.06,161.54,161.43,2.80999127]
[1641411289333,2.19000873,161.43,161.42,95.11275545]
[1641411289735,2.19000873,161.43,161.42,92.9]
[1641411290234,8.25440867,161.43,161.37,4.942914]
[1641411290435,5.2222087,161.43,161.37,14.282914]
[1641411290637,2.19000873,161.43,161.37,14.282914]
[1641411291640,2.19000873,161.43,161.37,4.942914]
[1641411292539,2.25000873,161.43,161.37,4.942914]
[1641411293342,7.99345453,161.33,161.31,21.93936338]
[1641411293540,7.99345453,161.33,161.28,9.1049]
[1641411293743,7.99345453,161.33,161.24,502.87989265]
[1641411294341,5.0,161.31,161.24,502.87989265]
[1641411294742,0.06,161.3,161.24,502.87989265]
[1641411295342,23.53902641,161.3,161.24,502.87989265]
[1641411295646,32.41902641,161.3,161.24,0.3684462]
[1641411295851,37.69602641,161.3,161.24,0.3684462]
[1641411296050,37.95602641,161.3,161.24,0.3684462]
[1641411296251,38.19602641,161.3,161.24,0.3684462]
[1641411296450,37.69602641,161.3,161.24,0.3684462]
[1641411296850,37.69602641,161.3,161.22,5.03791311]
[1641411296851,50.0,161.28,161.22,5.03791311]
[1641411297051,32.91902641,161.3,161.22,5.03791311]
[1641411297052,8.88,161.27,161.22,5.03791311]
[1641411297671,27.38611364,161.26,161.22,5.03791311]
[1641411297870,36.26611364,161.26,161.22,5.03791311]
[1641411298270,0.06,161.25,161.22,5.03791311]
[1641411298470,6.06439994,161.24,161.22,5.03791311]
[1641411298873,0.06,161.23,161.15,2.5786115]
[1641411299172,8.88,161.25,161.15,2.5786115]
[1641411299371,5.0,161.22,161.15,2.5786115]
[1641411299571,5.0,161.22,161.15,1.5786115]
[1641411301675,13.88,161.22,161.15,1.5786115]
[1641411301873,13.88,161.22,161.13,1.0]
[1641411302073,13.88,161.22,161.14,2.78351779]
[1641411302577,0.06,161.21,161.13,10.4313]
[1641411303582,0.06,161.21,161.14,3.04717103]
[1641411304476,5.0,161.15,161.14,3.04717103]
[1641411304677,5.0,161.22,161.14,3.04717103]
[1641411304678,5.0,161.22,161.15,5.0]
[1641411305680,5.0,161.22,161.15,36.57015021]
[1641411306680,8.88,161.28,161.15,36.57015021]
[1641411306880,8.88,161.28,161.15,59.37985021]
[1641411307781,8.88,161.28,161.16,9.301]
[1641411307981,8.88,161.28,161.17,2.77795208]
[1641411308182,13.88,161.31,161.17,2.77795208]
[1641411308383,13.88,161.31,161.17,3.09954654]
[1641411308581,13.88,161.31,161.17,21.15930452]
[1641411308881,13.88,161.31,161.17,20.83771006]
[1641411309086,13.88,161.31,161.17,45.77341006]
[1641411309282,5.0,161.31,161.18,9.19083605]
[1641411309482,5.0,161.31,161.18,4.19083605]
[1641411309882,5.0,161.31,161.18,14.65357603]
[1641411310086,5.0,161.31,161.19,551.16602797]
[1641411310285,5.0,161.31,161.2,2.79698103]
[1641411310682,27.62905207,161.31,161.2,2.79698103]
[1641411310885,8.88,161.3,161.2,2.79698103]
[1641411311885,5.0,161.31,161.2,2.79698103]
[1641411312084,5.0,161.31,161.2,11.67698103]
[1641411312289,5.0,161.31,161.2,27.67494347]
[1641411312486,5.0,161.31,161.2,38.13768345]
[1641411313287,5.0,161.31,161.21,9.2972]
[1641411313488,7.99345453,161.33,161.21,107.88]
[1641411313686,5.09992552,161.36,161.23,99.0]
[1641411313886,5.09992552,161.36,161.24,11.65268255]
[1641411314087,5.09992552,161.36,161.24,27.23342253]
[1641411314290,5.09992552,161.36,161.25,22.78571483]
[1641411314494,5.09992552,161.36,161.26,3.88]
[1641411314688,5.09992552,161.36,161.27,2.90152138]
[1641411316823,5.09992552,161.36,161.28,8.88]
[1641411317225,8.88,161.46,161.29,118.58043731]
[1641411317422,8.88,161.46,161.31,2.87546101]
[1641411317620,8.88,161.46,161.32,23.8132]
[1641411317822,8.88,161.46,161.33,26.60979948]
[1641411318621,8.88,161.46,161.34,3.0176447]
[1641411320025,8.88,161.49,161.34,3.0176447]
[1641411320225,8.88,161.49,161.34,27.3173447]
[1641411320424,8.94,161.49,161.34,27.3173447]
[1641411321426,8.88,161.49,161.34,27.3173447]
[1641411321625,8.88,161.49,161.35,8.88]
[1641411321825,1.55945923,161.52,161.35,8.88]
[1641411321826,1.55945923,161.52,161.35,15.057]
[1641411322029,8.88,161.53,161.37,2.93627586]
[1641411322030,1.55945923,161.53,161.37,2.93627586]
[1641411322228,1.55945923,161.53,161.38,33.3829]
[1641411322428,1.55945923,161.53,161.38,53.60242489]
[1641411322626,8.88,161.56,161.38,53.60242489]
[1641411322827,8.88,161.56,161.39,20.21952489]
[1641411323130,1.55945923,161.57,161.4,21.50940683]
[1641411323327,1.55945923,161.57,161.43,9.2848]
[1641411323528,1.55945923,161.59,161.44,2.849431]
[1641411323729,1.55945923,161.59,161.45,24.0495]
[1641411324028,30.27471713,161.59,161.46,30.07943906]
[1641411324230,0.06,161.58,161.46,30.07943906]
[1641411324530,8.94,161.58,161.46,30.07943906]
[1641411325327,8.94,161.58,161.45,98.9828]
[1641411325528,8.94,161.58,161.39,9.75678491]
[1641411325732,1.47846154,161.57,161.37,81.9555]
[1641411325928,8.94,161.56,161.37,73.0755]
[1641411326127,10.49945923,161.56,161.37,81.9555]
[1641411326327,10.49945923,161.56,161.41,2.90425165]
[1641411326328,16.34643635,161.55,161.41,2.90425165]
[1641411326528,8.88,161.54,161.41,2.90425165]
[1641411326728,0.06,161.53,161.41,2.90425165]
[1641411327031,25.8251912,161.51,161.39,25.25813983]
[1641411327230,8.88,161.5,161.36,49.3271]
[1641411327428,0.06,161.49,161.36,49.3271]
[1641411327629,8.88,161.48,161.33,9.75678491]
[1641411327829,0.06,161.46,161.3,124.6383]
[1641411328029,8.88,161.45,161.3,124.6383]
[1641411328232,0.06,161.43,161.28,518.15144517]
[1641411328432,8.88,161.42,161.28,518.15144517]
[1641411328629,0.06,161.4,161.28,518.15144517]
[1641411328829,8.94,161.4,161.28,518.15144517]
[1641411329030,61.73,161.39,161.28,518.15144517]
[1641411329230,0.06,161.37,161.26,2.56966638]
[1641411329431,8.88,161.36,161.24,9.2441]
[1641411329629,0.06,161.35,161.19,36.91227563]
[1641411329831,8.88,161.34,161.2,29.91356206]
[1641411330029,0.06,161.33,161.2,29.91356206]
[1641411330230,8.88,161.32,161.2,29.91356206]
[1641411330530,0.06,161.31,161.2,32.69452864]
[1641411331330,19.35650305,161.31,161.2,32.69452864]
[1641411331731,19.35650305,161.31,161.2,2.78096658]
[1641411332028,8.88,161.3,161.19,24.0499]
[1641411332229,8.88,161.3,161.17,401.81631046]
[1641411332230,0.06,161.29,161.17,401.81631046]
[1641411332432,8.88,161.28,161.17,401.81631046]
[1641411332631,0.06,161.27,161.13,1.0]
[1641411332831,8.88,161.26,161.13,28.10803568]
[1641411333032,0.06,161.25,161.14,2.62758729]
[1641411338638,19.49982677,161.23,161.13,1.0]
[1641411338837,8.88,161.22,161.13,1.0]
[1641411339038,0.06,161.21,161.13,1.0]
[1641411339244,8.94,161.21,161.13,1.0]
[1641411339939,8.88,161.21,161.14,23.25912416]
[1641411340840,8.88,161.21,161.13,1.0]
[1641411341543,5.0,161.14,161.13,1.0]
[1641411341742,8.94,161.23,161.13,100.0]
[1641411342342,9.44,161.23,161.13,100.0]
[1641411342746,9.44,161.23,161.13,1.0]
[1641411342944,0.06,161.21,161.13,1.0]
[1641411343143,0.06,161.18,161.13,1.0]
[1641411346552,4.0,161.13,161.12,1.0]
[1641411346751,4.0,161.13,161.12,52.5]
[1641411346953,4.0,161.13,161.12,0.5]
[1641411347652,10.06439994,161.13,161.12,0.5]
[1641411350984,33.17033733,161.02,161.0,156.30091258]
[1641411351184,8.78039951,161.02,161.01,2.471218]
[1641411351386,38.28039951,161.02,161.01,2.471218]
[1641411351585,46.66039951,161.02,161.01,2.471218]
[1641411351784,1.03249451,161.0,160.98,0.31047755]
[1641411351984,8.94,160.99,160.98,0.31047755]
[1641411352385,8.94,160.99,160.98,7.755e-05]
[1641411352686,8.94,160.99,160.97,4.44299155]
[1641411352886,9.44,160.99,160.97,4.44299155]
[1641411353091,36.0,160.98,160.87,1.4728948]
[1641411353286,24.22090622,160.96,160.87,1.4728948]
[1641411353485,8.88,160.95,160.87,1.4728948]
[1641411353687,0.06,160.93,160.87,1.4728948]
[1641411353889,8.88,160.92,160.87,1.4728948]
[1641411354088,8.88,160.92,160.81,35.17254587]
[1641411354488,0.06,160.9,160.81,9.3664]
[1641411354689,0.06,160.87,160.76,1.48096011]
[1641411354891,8.88,160.86,160.76,0.98096011]
[1641411355089,8.88,160.85,160.77,2.9428724]
[1641411355489,0.06,160.84,160.77,2.9428724]
[1641411355692,8.88,160.83,160.77,2.9428724]
[1641411357291,8.88,160.83,160.76,0.98096011]
[1641411358295,8.88,160.83,160.77,2.25254953]
[1641411358494,0.00402084,160.83,160.77,2.25254953]
[1641411359094,110.96,160.92,160.77,2.25254953]
[1641411359294,67.96,160.92,160.77,2.25254953]
[1641411359494,8.88,160.97,160.78,18.43941968]
[1641411359694,1.55945923,161.01,160.78,93.21821968]
[1641411359895,4.54806529,161.02,160.83,0.32211009]
[1641411360095,4.54806529,161.02,160.84,11.45457516]
[1641411360295,4.54806529,161.02,160.85,26.33404264]
[1641411360494,4.54806529,161.02,160.88,0.30026107]
[1641411360694,4.54806529,161.02,160.9,2.2591785]
[1641411360927,4.54806529,161.02,160.91,8.88]
[1641411361295,4.54806529,161.02,160.92,9.48187067]
[1641411361495,4.54806529,161.02,160.94,2.59813528]
[1641411361697,4.54806529,161.02,160.96,28.26993046]
[1641411363294,4.54806529,161.02,160.97,2.45013312]
[1641411363497,4.54806529,161.02,160.97,9.91013312]
[1641411366499,4.54806529,161.02,160.97,4.91013312]
[1641411366697,4.54806529,161.02,160.98,2.44087959]
[1641411368425,3.30806529,161.02,160.98,2.44087959]
[1641411369025,0.00806529,161.02,160.98,2.44087959]
[1641411369428,0.00806529,161.02,160.99,7.46]
[1641411369626,0.00806529,161.02,160.99,12.768]
[1641411370029,5.0,161.12,161.01,99.0]
[1641411370229,5.0,161.12,161.02,2.68548369]
[1641411370428,5.0,161.12,161.04,26.28414842]
[1641411371628,5.0,161.12,161.04,21.28414842]
[1641411374131,7.46,161.19,161.04,21.28414842]
[1641411374329,1.55945923,161.2,161.04,22.42433224]
[1641411374536,0.06,161.21,161.05,2.62945134]
[1641411375231,7.46,161.2,161.05,2.62945134]
[1641411375532,0.06,161.18,161.05,2.62945134]
[1641411376439,0.06,161.18,161.05,10.08945134]
[1641411376640,0.06,161.18,161.06,2.90584211]
[1641411376837,0.06,161.18,161.07,7.46]
[1641411377138,0.06,161.18,161.07,13.267]
[1641411377337,0.06,161.18,161.08,29.43268924]
[1641411378040,0.06,161.23,161.08,29.43268924]
[1641411378338,0.06,161.21,161.08,29.43268924]
[1641411378538,7.46,161.22,161.08,29.43268924]
[1641411378741,0.06,161.21,161.08,29.43268924]
[1641411379743,0.06,161.21,161.08,29.24920604]
[1641411381545,0.06,161.21,161.08,24.24920604]
[1641411385347,0.06,161.21,161.08,29.03220604]
[1641411385549,0.06,161.21,161.09,2.94017975]
[1641411386250,0.06,161.21,161.09,10.40017975]
[1641411386450,0.06,161.21,161.09,35.20157975]
[1641411386754,0.06,161.21,161.1,3.00693772]
[1641411387050,0.06,161.21,161.11,7.46]
[1641411387249,0.06,161.21,161.12,28.68313688]
[1641411389353,0.06,161.21,161.12,34.56113688]
[1641411389551,0.06,161.21,161.13,2.7894245]
[1641411390953,0.06,161.35,161.14,120.7046]
[1641411391554,0.06,161.35,161.14,145.3016]
[1641411392151,7.46,161.34,161.15,7.46]
[1641411392353,0.06,161.33,161.16,28.87577427]
[1641411392552,0.06,161.33,161.17,7.46]
[1641411392952,0.06,161.33,161.17,13.747]
[1641411393358,0.06,161.33,161.17,23.0466]
[1641411393557,0.06,161.33,161.17,37.6402]
[1641411393756,0.06,161.33,161.17,47.71693354]
[1641411394156,0.06,161.33,161.19,0.30557015]
[1641411394358,0.06,161.33,161.2,10.33186006]
[1641411394560,0.06,161.33,161.22,29.78908847]
[1641411394785,0.06,161.33,161.23,7.46]
[1641411394987,0.06,161.4,161.24,3.05663475]
[1641411395188,7.46,161.41,161.25,7.46]
[1641411395388,0.06,161.4,161.26,30.44744112]
[1641411395788,7.46,161.39,161.26,30.44744112]
[1641411395991,31.06851422,161.39,161.26,30.44744112]
[1641411396190,0.06,161.37,161.26,30.44744112]
[1641411396390,1.55945923,161.36,161.26,30.44744112]
[1641411397194,1.55945923,161.37,161.26,30.44744112]
[1641411398590,1.55945923,161.36,161.26,30.44744112]
[1641411399189,1.55945923,161.36,161.26,37.90744112]
[1641411399391,1.55945923,161.37,161.27,2.69262312]
[1641411399592,1.55945923,161.37,161.28,7.46]
[1641411400193,1.55945923,161.4,161.28,7.46]
[1641411401194,1.55945923,161.41,161.28,7.46]
[1641411401998,1.55945923,161.41,161.28,17.69168256]
[1641411402798,1.55945923,161.42,161.28,26.67888561]
[1641411402997,1.55945923,161.42,161.29,47.4468]
[1641411403199,1.55945923,161.42,161.3,32.98169969]
[1641411403498,1.55945923,161.42,161.3,43.21338225]
[1641411403697,1.55945923,161.44,161.3,43.21338225]
[1641411404901,1.55945923,161.44,161.3,52.50528225]
[1641411405500,1.55945923,161.45,161.3,52.50528225]
[1641411405899,1.55945923,161.44,161.3,52.50528225]
[1641411407102,1.55945923,161.44,161.31,9.2914]
[1641411407307,1.55945923,161.44,161.32,7.46]
[1641411407511,1.55945923,161.44,161.33,2.65687126]
[1641411407704,3.48493139,161.48,161.34,7.46]
[1641411407705,1.55945923,161.45,161.34,7.46]
[1641411408004,1.55945923,161.45,161.34,17.69168256]
[1641411408204,1.55945923,161.45,161.35,29.78526776]
[1641411408503,1.55945923,161.52,161.37,2.1583709]
[1641411408704,1.55945923,161.52,161.38,7.46]
[1641411408904,1.55945923,161.52,161.39,22.60068505]
[1641411409103,1.55945923,161.52,161.4,7.46]
[1641411409305,1.55945923,161.52,161.41,3.02373454]
[1641411409704,1.55945923,161.55,161.41,3.02373454]
[1641411410107,1.55945923,161.55,161.41,10.48373454]
[1641411411106,1.55945923,161.56,161.41,10.48373454]
[1641411411704,7.46,161.59,161.41,10.48373454]
[1641411413304,7.46,161.59,161.41,19.76903454]
[1641411413504,7.46,161.59,161.41,30.0007171]
[1641411413704,7.46,161.59,161.41,20.7154171]
[1641411414308,31.87155048,161.63,161.41,20.7154171]
[1641411414509,32.37155048,161.63,161.43,23.61685302]
[1641411414711,32.37155048,161.63,161.45,2.45753349]
[1641411414909,0.06,161.62,161.47,26.49211447]
[1641411415110,7.46,161.61,161.47,26.49211447]
[1641411415411,0.06,161.6,161.47,26.49211447]
[1641411415708,27.14950913,161.59,161.47,26.49211447]
[1641411415912,0.06,161.58,161.47,26.49211447]
[1641411419716,0.06,161.6,161.45,49.41493349]
[1641411419915,0.06,161.6,161.45,9.91753349]
[1641411420816,7.52,161.6,161.45,2.45753349]
[1641411421060,73.98846154,161.6,161.45,2.45753349]
[1641411421260,14.53576855,161.6,161.45,2.45753349]
[1641411421462,0.06,161.56,161.45,2.45753349]
[1641411421762,0.06,161.54,161.45,2.45753349]
[1641411421960,7.52,161.54,161.45,2.45753349]
[1641411422160,24.4462466,161.53,161.45,2.45753349]
[1641411422359,0.06,161.52,161.4,30.01770898]
[1641411423560,0.06,161.52,161.4,32.36232916]
[1641411425062,0.06,161.52,161.41,7.52]
[1641411425264,0.06,161.52,161.41,35.31230124]
[1641411425665,0.06,161.52,161.42,20.55330124]
[1641411425862,3.0,161.57,161.43,10.29458554]
[1641411426063,1.55945923,161.65,161.44,0.06]
[1641411426264,1.55945923,161.65,161.45,7.46]
[1641411426462,1.55945923,161.65,161.46,50.27132232]
[1641411426662,46.3528,161.7,161.47,8.97]
[1641411426663,8.91,161.67,161.47,8.97]
[1641411426862,8.91,161.67,161.48,31.78666566]
[1641411427062,8.91,161.67,161.49,8.91]
[1641411427262,8.91,161.67,161.5,75.64042438]
[1641411427462,8.91,161.67,161.5,84.55042438]
[1641411428065,24.5608,161.72,161.5,105.16372562]
[1641411428267,8.91,161.71,161.5,105.16372562]
[1641411428464,8.41,161.71,161.5,105.16372562]
[1641411428665,55.0104,161.75,161.51,111.43]
[1641411428865,55.0104,161.75,161.52,56.3524]
[1641411429068,23.17869634,161.74,161.53,30.44367679]
[1641411429266,23.17869634,161.74,161.54,8.97]
[1641411430067,23.17869634,161.74,161.54,19.66363771]
[1641411430273,55.0104,161.75,161.54,19.66363771]
[1641411430472,55.0104,161.75,161.54,38.80230124]
[1641411430874,55.0104,161.75,161.56,2.99769423]
[1641411431070,55.0104,161.75,161.57,8.91]
[1641411431071,8.91,161.75,161.57,8.91]
[1641411431270,30.37526722,161.74,161.58,25.26623929]
[1641411431470,30.37526722,161.74,161.58,34.17623929]
[1641411431672,30.87526722,161.74,161.59,2.40250115]
[1641411432698,30.37526722,161.74,161.59,2.40250115]
[1641411433501,30.87526722,161.74,161.59,2.40250115]
[1641411434301,30.87526722,161.74,161.59,2.46250115]
[1641411436106,30.37526722,161.74,161.59,2.46250115]
[1641411438804,30.37526722,161.74,161.59,1.96250115]
[1641411439202,7.42,161.76,161.59,1.96250115]
[1641411439403,7.92,161.76,161.59,1.96250115]
[1641411440112,30.88557609,161.76,161.59,24.60090115]
[1641411443709,30.88557609,161.76,161.6,2.41152016]
[1641411447913,30.88557609,161.76,161.6,1.91152016]
[1641411448617,3.08847984,161.6,161.58,7.42]
[1641411448817,3.08847984,161.6,161.58,2.39120449]
[1641411449014,3.08847984,161.6,161.55,7.42]
[1641411449216,3.08847984,161.6,161.52,16.8032]
[1641411449713,35.4685301,161.6,161.49,35.51000857]
[1641411449914,35.9685301,161.6,161.49,35.51000857]
[1641411450114,35.9685301,161.6,161.5,2.36995303]
[1641411450519,35.9685301,161.6,161.46,16.6409]
[1641411450718,35.9685301,161.6,161.42,56.74516353]
[1641411450942,43.3885301,161.6,161.43,7.42]
[1641411451317,43.3885301,161.6,161.43,18.11363771]
[1641411451516,43.3885301,161.6,161.44,25.55403136]